Workbook

Sheet CONSOLIDATED STATEMENTS OF OPER
A1: CONSOLIDATED STATEMENTS OF OPERATIONS - USD ($) shares in Thousands, $ in Thousands | B1: 12 Months Ended
B2: Sep. 30, 2017 | C2: common size 2017 | D2: Sep. 30, 2016 | E2: Common Size 2016 | F2: Sep. 30, 2015 | G2: Horizontal Analysis
A3: Operating revenues:
A4: Total operating revenues | B4: $ 129,829 | C4: =B4/B$4 -> 100.0% | D4: $ 144,196 | E4: =D4/D$4 -> 100.0% | F4: $ 153,126 | G4: =(B4-D4)/D4 -> -10.0%
A5: Cost of Goods Sold | B5: 120,899 | C5: =B5/B$4 -> 93.1% | D5: 109,137 | E5: =D5/D$4 -> 75.7% | F5: 117,668 | G5: =(B5-D5)/D5 -> 10.8%
A6: Gross profit | B6: 8,930 | C6: 6.9% | D6: 35,059 | E6: 24.3% | F6: 35,458 | G6: -74.5%
A7: General and administrative expenses | B7: 15,024 | C7: 11.6% | D7: 13,213 | E7: 9.2% | F7: 16,494 | G7: 13.7%
A8: (Loss) income from operations | B8: (6,094) | C8: -4.7% | D8: 21,846 | E8: 15.2% | F8: 18,964 | G8: -127.9%
A9: Other (expense) income: | C9: 0.0% | E9: 0.0%
A10: Interest expense | B10: =9141+148 -> 9,289 | C10: 7.2% | D10: 9,893 | E10: 6.9% | F10: 8,368 | G10: -6.1%
A11: Gain on sale of real estate and fixed assets | B11: 2,181 | C11: 1.7% | D11: 618 | E11: 0.4% | F11: 14,735 | G11: 252.9%
A12: Loss on extinguishment of debt | B12: 0 | C12: 0.0% | D12: 0 | E12: 0.0% | F12: (1,051)
A13: Other expense, net | B13: (140) | C13: -0.1% | D13: (91) | E13: -0.1% | F13: (196) | G13: 53.8%
A14: Total other (expense) income, net | B14: 7,248 | C14: 5.6% | D14: 9,366 | E14: 6.5% | F14: (5,124) | G14: -22.6%
A15: (Loss) income before income taxes | B15: (13,342) | C15: -10.3% | D15: 12,480 | E15: 8.7% | F15: 24,088 | G15: -206.9%
A16: Provision (benefit) for income taxes | B16: (3,846) | C16: -3.0% | D16: 5,521 | E16: 3.8% | F16: 10,905 | G16: -169.7%
A17: Net (loss) income | B17: (9,496) | C17: -7.3% | D17: 6,959 | E17: 4.8% | F17: 13,183 | G17: -236.5%

Sheet CONSOLIDATED BALANCE SHEETS
A1: CONSOLIDATED BALANCE SHEETS - USD ($) $ in Thousands | B1: Sep. 30, 2017 | C1: Common Size 2017 | D1: Sep. 30, 2016 | E1: common Size 2016 | F1: Horizontal Analysis
A2: Current assets:
A3: Cash and cash equivalents | B3: $ 3,395 | C3: =B3/B$14 -> 0.8% | D3: $ 6,625 | E3: =D3/D$14 -> 1.5% | F3: =(B3-D3)/D3 -> -48.8%
A4: Accounts receivable, net | B4: 4,286 | C4: =B4/B$14 -> 1.0% | D4: 4,740 | E4: =D4/D$14 -> 1.0% | F4: =(B4-D4)/D4 -> -9.6%
A5: Inventories | B5: 36,204 | C5: 8.6% | D5: 58,469 | E5: 12.8% | F5: -38.1%
A6: Income tax receivable | B6: 0 | C6: 0.0% | D6: 1,013 | E6: 0.2% | F6: -100.0%
A7: Assets held for sale | B7: 20,983 | C7: 5.0% | D7: 0 | E7: 0.0%
A8: Prepaid expenses and other current assets | B8: 1,621 | C8: 0.4% | D8: 1,024 | E8: 0.2% | F8: 58.3%
A9: Total current assets | B9: 66,489 | C9: 15.9% | D9: 71,871 | E9: 15.8% | F9: -7.5%
A10: Property and equipment, net | B10: 349,337 | C10: 83.3% | D10: 379,247 | E10: 83.3% | F10: -7.9%
A11: Goodwill | B11: 2,246 | C11: 0.5% | D11: 2,246 | E11: 0.5% | F11: 0.0%
A12: Deferred financing costs, net of accumulated amortization | B12: 262 | C12: 0.1% | D12: 389 | E12: 0.1% | F12: -32.6%
A13: Other non-current assets | B13: 848 | C13: 0.2% | D13: 1,692 | E13: 0.4% | F13: -49.9%
A14: Total assets | B14: 419,182 | C14: 100.0% | D14: 455,445 | E14: 100.0% | F14: -8.0%
A15: Current liabilities:
A16: Accounts payable | B16: 3,192 | C16: 0.8% | D16: 5,975 | E16: 1.3% | F16: -46.6%
A17: Accrued liabilities | B17: 6,781 | C17: 1.6% | D17: 6,920 | E17: 1.5% | F17: -2.0%
A18: Long-term debt, current portion | B18: 4,550 | C18: 1.1% | D18: 4,493 | E18: 1.0% | F18: 1.3%
A19: Other current liabilities | B19: 1,460 | C19: 0.3% | D19: 1,290 | E19: 0.3% | F19: 13.2%
A20: Total current liabilities | B20: 15,983 | C20: 3.8% | D20: 18,678 | E20: 4.1% | F20: -14.4%
A21: Long-term debt:
A22: Principal Amount | B22: 181,926 | C22: 43.4% | D22: 192,726 | E22: 42.3% | F22: -5.6%
A23: Less: deferred financing costs, net | B23: (1,767) | C23: -0.4% | D23: (1,980) | E23: -0.4% | F23: -10.8%
A24: Long-term debt less deferred financing costs, net | B24: 180,159 | C24: 43.0% | D24: 190,746 | E24: 41.9% | F24: -5.6%
A25: Lines of credit | B25: 0 | C25: 0.0% | D25: 5,000 | E25: 1.1% | F25: -100.0%
A26: Deferred tax liability | B26: 27,108 | C26: 6.5% | D26: 31,056 | E26: 6.8% | F26: -12.7%
A27: Deferred gain on sale | B27: 26,440 | C27: 6.3% | D27: 27,204 | E27: 6.0% | F27: -2.8%
A28: Deferred retirement obligations | B28: 4,123 | C28: 1.0% | D28: 4,198 | E28: 0.9% | F28: -1.8%
A29: Obligations under capital leases | B29: 0 | C29: 0.0% | D29: 300 | E29: 0.1% | F29: -100.0%
A30: Total liabilities | B30: 253,813 | C30: 60.5% | D30: 277,182 | E30: 60.9% | F30: -8.4%
A31: Commitments and Contingencies (Note 17)
A32: Stockholders' equity:
A33: Preferred stock, no par value, 1,000,000 shares authorized; none issued | B33: 0 | C33: 0.0% | D33: 0 | E33: 0.0%
A34: Common stock, $1.00 par value, 15,000,000 shares authorized; 8,416,145 and 8,416,145 shares issued and 8,238,830 and 8,315,535 shares outstanding at September 30, 2017 and 2016, respectively | B34: 8,416 | C34: 2.0% | D34: 8,416 | E34: 1.8% | F34: 0.0%
A35: Additional paid in capital | B35: 18,694 | C35: 4.5% | D35: 18,155 | E35: 4.0% | F35: 3.0%
A36: Treasury stock, at cost, 177,315 and 100,610 shares held at September 30, 2017 and 2016, respectively | B36: (6,502) | C36: -1.6% | D36: (4,585) | E36: -1.0% | F36: 41.8%
A37: Retained earnings | B37: 140,033 | C37: 33.4% | D37: 151,504 | E37: 33.3% | F37: -7.6%
A38: Total stockholders' equity | B38: 165,369 | C38: 39.5% | D38: 178,263 | E38: 39.1% | F38: -7.2%
A39: Total liabilities and stockholders' equity | B39: $ 419,182 | C39: 100.0% | D39: $ 455,445 | E39: 100.0% | F39: -8.0%

Sheet Solvency Ratios
A1: Working Capital = | B1: Current Assets - Current Liabilities
B2: ='CONSOLIDATED BALANCE SHEETS'!B9-'CONSOLIDATED BALANCE SHEETS'!B20 -> 50,506
A4: Current Ratio = | B4: Current Assets / Current Liabilities
B5: ='CONSOLIDATED BALANCE SHEETS'!B9/'CONSOLIDATED BALANCE SHEETS'!B20 -> 4.2
A7: Acid Test Ratio = | B7: (Cash + Marketable Securities + Current Accounts receivable) / Current Liabilites
A8: aka quick ratio | B8: =('CONSOLIDATED BALANCE SHEETS'!B3+'CONSOLIDATED BALANCE SHEETS'!B4)/'CONSOLIDATED BALANCE SHEETS'!B20 -> 48.1%
A10: Inventory Turnover = | B10: COGS / Average Inventory
A11: Avg Inventory (2016+2017)/2 | B11: ='CONSOLIDATED STATEMENTS OF OPER'!B5/'Solvency Ratios'!A12 -> 2.6
A12: =('CONSOLIDATED BALANCE SHEETS'!D5+'CONSOLIDATED BALANCE SHEETS'!B5)/2 -> 47336.5
A14: Days Sales in receivables = | B14: Avg AR / Avg daily credit sales
A15: Avg daily sales (sales / 365) | B15: =A30/A16 -> 12.7
A16: ='CONSOLIDATED STATEMENTS OF OPER'!B4/365 -> 355.7
A18: Days Sales in inventory = | B18: Avg inventory / Avg daily COGS
A19: Avg daily COGS = COGS/365 | B19: =A12/A20 -> 142.9
A20: ='CONSOLIDATED STATEMENTS OF OPER'!B5/365 -> 331.230137
A22: Debt to equity ratio = | B22: Total liabilities / total stockholders equity
B23: ='CONSOLIDATED BALANCE SHEETS'!B30/'CONSOLIDATED BALANCE SHEETS'!B38 -> 1.5
A25: Times - interest - earned = | B25: (Net income + interest expense + income taxes) / interest expense
B26: =('CONSOLIDATED STATEMENTS OF OPER'!B17+'CONSOLIDATED STATEMENTS OF OPER'!B10+'CONSOLIDATED STATEMENTS OF OPER'!B16)/'CONSOLIDATED STATEMENTS OF OPER'!B10 -> -0.4
A28: AR Turnover = | B28: Net sales / Avg AR
A29: Avg AR (2016+2017)/2 | B29: ='CONSOLIDATED STATEMENTS OF OPER'!B4/'Solvency Ratios'!A30 -> 28.8
A30: =('CONSOLIDATED BALANCE SHEETS'!D4+'CONSOLIDATED BALANCE SHEETS'!B4)/2 -> 4513

Sheet Performance Ratios
A1: Asset Turnover = | B1: Net Sales / Avg total assets
A2: Avg Total Asset (2016+2017)/2 | B2: ='CONSOLIDATED STATEMENTS OF OPER'!B4/'Performance Ratios'!A3 -> 0.30
A3: =('CONSOLIDATED BALANCE SHEETS'!D14+'CONSOLIDATED BALANCE SHEETS'!B14)/2 -> 437313.5
A5: Return on Sales = | B5: (Net Income + net of tax interest expense) / Sales
A7: net of tax interest = interest expense (1-tax rate) | B7: =('CONSOLIDATED STATEMENTS OF OPER'!B17+'Performance Ratios'!A8)/'CONSOLIDATED STATEMENTS OF OPER'!B4 -> (0.03)
A8: ='CONSOLIDATED STATEMENTS OF OPER'!B10*(1-0.35) -> 6,037.9
A10: Return on Assets = | B10: (net income + net of tax interest expense) / Avg total assets
B11: =('CONSOLIDATED STATEMENTS OF OPER'!B17+'Performance Ratios'!A8)/'Performance Ratios'!A3 -> (0.01)
A13: Return on Equity = | B13: Net income / Avg stockholders equity
A14: Avg stockholder equity = (2016+2017)/2 | B14: ='CONSOLIDATED STATEMENTS OF OPER'!B17/'Performance Ratios'!A15 -> (0.06)
A15: =('CONSOLIDATED BALANCE SHEETS'!D38+'CONSOLIDATED BALANCE SHEETS'!B38)/2 -> 171816
A17: Average Interest Rate = | B17: Interest expense / Avg total liabilities
A18: Avg total liabilities = (2016+2017)/2 | B18: ='CONSOLIDATED STATEMENTS OF OPER'!B10/'Performance Ratios'!A19 -> 3.5%
A19: =('CONSOLIDATED BALANCE SHEETS'!D30+'CONSOLIDATED BALANCE SHEETS'!B30)/2 -> 265497.5
A21: Gross Margin = | B21: Gross profit / Net Sales
B22: ='CONSOLIDATED STATEMENTS OF OPER'!B6/'CONSOLIDATED STATEMENTS OF OPER'!B4 -> 6.9%

Sheet Inventories
A1: Inventories | B1: 12 Months Ended
B2: Sep. 30, 2017
A3: Inventory Disclosure [Abstract]
A4: Inventories | B4: Inventories Inventories consist of the following at September 30, 2017 and September 30, 2016 : (in thousands) September 30, 2017 2016 Unharvested fruit crop on the trees $ 32,145 $ 52,204 Beef cattle 1,954 783 Citrus tree nursery — 3,090 Other 2,105 2,392 Total inventories $ 36,204 $ 58,469 In September 2017, the State of Florida’ citrus business, including the Company’s unharvested citrus crop, were significantly impacted by Hurricane Irma. The impact of Hurricane Irma resulted in the premature drop of unharvested fruit and damage to citrus trees, which we expect to impact future fruit production until such time as the citrus trees recover. We anticipate future fruit production to be impacted in the 2017/2018 and, potentially, the 2018/2019 harvest seasons. The Company undertook a process to estimate the amount of inventory casualty loss as of the date of Hurricane Irma. Such process included a number of factors including: (1) touring all of the citrus groves by operational personnel to assess the estimated fruit drop by grove and the impact of damage to the citrus trees; (2) consideration of independent estimates of the reduced citrus production for the State of Florida; and (3) an estimate of fruit the Company expects to produce for the 2017/2018 harvest season after Hurricane Irma. As a result, the Company recorded a casualty loss to reduce the carrying value of unharvested fruit crop on trees inventory by approximately $13,489,000 . While the Company believes the recorded loss to be its best estimate at this time, additional impairment could result based on the results of the 2017/2018 harvest season. The Company maintains crop insurance and is working closely with its insurers and adjusters to evaluate and determine the amount of insurance recoveries, if any, the Company may be entitled to. The amount of insurance recoveries, if any, will be recorded in the period in which such recoveries are both probable and reasonably estimable. After determining and applying the amount of loss due to shrinkage to the inventory value, the Company evaluated the remaining inventory and determined an additional reduction was necessary in the amount of $1,199,000 to properly reflect the net realizable value of such inventory at September 30, 2017 . The Company reclassified the citrus tree nursery inventory to property and equipment during fiscal 2017.
